{"text_format":"3","workbook":"xlsx","n_sheets":1,"sheets":["Unit_Price_Tab"],"not_rendered":{"external_links":1,"defined_names":7},"read":"whole","date_system":"1900"}

{"sheet":"Unit_Price_Tab","index":0,"n_rows":60,"n_cols":6,"rows_kept":60,"merged":[[1,0,1,5]]}
[]
["THE UNDERSIGNED CERTIFIES THAT (CONTRACTOR NAME)___________________________\nIS CURRENTLY REGISTERED WITH THE VIRGINIA STATE BOARD OF CONTRACTORS AS REQUIRED BY THE CODE OF VIRGINIA.  CERTIFICATE NUMBER _________________ WAS ISSUED ON THE ________DAY OF _____________, 20XX.  THE UNDERSIGNED FURTHER CERTIFIES THAT THE REGISTRATION FEE AND ALL RENEWAL FEES REQUIRED UNDER LAW HAVE BEEN PAID.  THE CONTRACTOR AGREES TO FURNISH ALL NECESSARY LABOR, EQUIPMENT, MATERIALS, AND ALL THINGS NECESSARY TO PERFORM THE WORK AS SET FORTH IN ACCORDANCE WITH THE PLANS AND SPECIFICATIONS. THE CONTRACTOR AGREES TO PERFORM RELATED WORK FOR THE FOLLOWING ITEMS AT THE FOLLOWING STIPULATED PRICES: (ALL PRICES INCLUDE PROVISION AND INSTALLATION)."]
[]
[]
[null,"GENERAL EARTHWORK"]
["BID ITEM #","DESCRIPTION","QTY","UNIT","UNIT PRICE","TOTAL"]
[1,"General Excavation, only when not included in other pay items",10,"CY",null,{"$f":"IFERROR($C7*$E7, \"\")","v":{"v":0,"d":"$0.00"}}]
[2,"Aggregate, VDOT #21-A  (Compacted in Place per VDOT standards & Specs)",10,"CY",null,{"v":0,"d":"$0.00"}]
[{"$nulls":4},"SUBTOTAL",{"$f":"SUM(F7:F8)","v":{"v":0,"d":"$0.00"}}]
[]
[null,"CONCRETE WORK"]
["BID ITEM #","DESCRIPTION","QTY","UNIT","UNIT PRICE","TOTAL"]
[3,"Concrete Curb & Gutter, Combination 6\" (VDOT CG-6), includes curb & gutter for aprons, ramps, etc.",25,"LF",null,{"$f":"IFERROR($C13*$E13, \"\")","v":{"v":0,"d":"$0.00"}}]
[4,"Concrete Sidewalk, 4\" Thickness (Arlington County Detail R-2.0)",40,"SY",null,{"v":0,"d":"$0.00"}]
[5,"CG-12 Detectable Warning Surface - Truncated Domes, VDOT Standard \"Safety Yellow\" color. ",5,"SY",null,{"v":0,"d":"$0.00"}]
[7,"Removal & Restoration of Stone Landscape Wall",26,"SF"]
[8,"Furnish and Install Non-removable Bollard",2,"EA",null,{"v":0,"d":"$0.00"}]
[{"$nulls":4},"SUBTOTAL",{"$f":"SUM(F13:F17)","v":{"v":0,"d":"$0.00"}}]
[]
[null,"ASPHALT WORK"]
["BID ITEM #","DESCRIPTION","QTY","UNIT","UNIT\nPRICE","TOTAL"]
[9,"Asphalt Concrete, Planing or Milling (1/2\" to 3\" Depth)",1200,"SY",null,{"$f":"IFERROR($C22*$E22, \"\")","v":{"v":0,"d":"$0.00"}}]
[10,"Asphalt Concrete, Base Course (VDOT BM-25.0A)",3,"TON",null,{"v":0,"d":"$0.00"}]
[11,"Asphalt Concrete, Surface Course (VDOT SM-9.5D)",150,"TON",null,{"v":0,"d":"$0.00"}]
[{"$nulls":4},"SUBTOTAL",{"$f":"SUM(F22:F24)","v":{"v":0,"d":"$0.00"}}]
[]
[null,"TRAFFIC & LANE USE CONTROL SIGNALS WORK"]
["BID ITEM #","DESCRIPTION","QTY","UNIT","UNIT\nPRICE","TOTAL"]
[12,"Furnish and Install Traffic Signal and Lane Control Mast Arms (includes pole and foundation designs)",1,"LS",null,{"$f":"IFERROR($C29*$E29, \"\")","v":{"v":0,"d":"$0.00"}}]
[13,"Furnish and Install Lane Use Control Signal",1,"LS",null,{"v":0,"d":"$0.00"}]
[14,"Furnish and Install LED Blankout Signs",1,"LS",null,{"v":0,"d":"$0.00"}]
[15,"Traffic Signal Upgrade of N. Glebe Rd. & Chain Bridge Rd. Intersection, includes all traffic signal work as outlined in Construction Plans, unless separated and paid under different line items",1,"LS",null,{"v":0,"d":"$0.00"}]
[16,"Furnish and Install Wireless Contact Closure System at DDOT and Arlington Sides of the Bridge (includes spare equipments for two full assemblies of the system)",1,"LS",null,{"v":0,"d":"$0.00"}]
[17,"Intellighent Transportation System Testing",1,"LS",null,{"v":0,"d":"$0.00"}]
[{"$nulls":4},"SUBTOTAL",{"$f":"SUM(F29:F34)","v":{"v":0,"d":"$0.00"}}]
[]
[null,"PAVEMENT MARKING AND SIGNAGE"]
["BID ITEM #","DESCRIPTION","QTY","UNIT","UNIT\nPRICE","TOTAL"]
[18,"Four (4) Inch Longitudinal Solid Line",150,"LF",null,{"$f":"IFERROR($C39*$E39, \"\")","v":{"v":0,"d":"$0.00"}}]
[19,"Four (4) Inch Longitudinal Skip Line (Ten (10) Foot Line/Thirty (30) Foot Spacing), Note: Forty (40) LF Consists of Ten (10) LF of Marking and Thirty (30) LF of Space",50,"LF",null,{"v":0,"d":"$0.00"}]
[20,"Twenty Four (24) Inch Transverse Markings, Note: Used For Continental (Ladder) Crosswalk and Stop bar",300,"LF",null,{"v":0,"d":"$0.00"}]
[21,"Twelve (12) Inch Yellow Longitudinal Reversable Lane Marking, Two - Four (4) Inch Yellow Skip Lines (10/30) with Four (4) Inch Spacing",170,"LF",null,{"v":0,"d":"$0.00"}]
[22,"Twelve (12) Inch Yellow Longitudinal Centerline, Two - Four (4) Inch Yellow Lines with Four (4) Inch Separation",85,"LF",null,{"v":0,"d":"$0.00"}]
[23,"Single Arrows",2,"EA",null,{"v":0,"d":"$0.00"}]
[24,"Remove and Dispose of Existing Post-mounted Information Signs",6,"EA",null,{"v":0,"d":"$0.00"}]
[25,"Relocate Existing Post-mounted Information Signs",1,"EA",null,{"v":0,"d":"$0.00"}]
[26,"Furnish and Install Traffic Control Sign (Typical Stop, Yield, No Parking, Speed Limit, or Similar)",1,"EA",null,{"v":0,"d":"$0.00"}]
[27,"Furnish and Install proposed Informational Sign with Sign Post (Non-Traffic Signal)",2,"EA",null,{"v":0,"d":"$0.00"}]
[{"$nulls":4},"SUBTOTAL",{"$f":"SUM(F39:F48)","v":{"v":0,"d":"$0.00"}}]
[]
[null,"E&SC, MOT AND MOBILIZATION WORK"]
["BID ITEM #","DESCRIPTION","QTY","UNIT","UNIT\nPRICE","TOTAL"]
[28,"Temporary Erosion and Sediment Controls (E&SC)",1,"LS",null,{"$f":"IFERROR($C53*$E53, \"\")","v":{"v":0,"d":"$0.00"}}]
[29,"Maintenance of Traffic (MOT)",1,"LS",null,{"v":0,"d":"$0.00"}]
[30,"Mobilization and De-Mobilization",1,"LS",null,{"v":0,"d":"$0.00"}]
[{"$nulls":4},"SUBTOTAL",{"$f":"SUM(F53:F55)","v":{"v":0,"d":"$0.00"}}]
[]
[]
[]
[{"$nulls":4}," CONTRACT TOTAL ",{"$f":"SUM(F9,F18,F25,F35,F49,F56)","v":{"v":0,"d":"$0.00"}}]